fUSD/lending_fUSD_20260409
["ID","MTS","AMOUNT","RATE_DAILY","PERIOD"]
[420140293,1775713849651,-151.0,0.00013699,2]
[420140294,1775713849660,-151.0,0.00013699,2]
[420140295,1775713849669,-151.0,0.00013699,2]
[420140296,1775713849679,-151.0,0.00013699,2]
[420140297,1775713849689,-151.0,0.00013699,2]
[420140298,1775713849699,-151.0,0.00013699,2]
[420140299,1775713849708,-151.0,0.00013699,2]
[420140300,1775713849718,-151.0,0.00013699,2]
[420140301,1775713849727,-151.0,0.00013699,2]
[420140302,1775713849736,-151.0,0.00013699,2]
[420140303,1775713849746,-151.0,0.00013699,2]
[420140304,1775713849755,-151.0,0.00013699,2]
[420140305,1775713849764,-163.226364,0.00013699,2]
[420140306,1775713849774,-151.0,0.00013699,2]
[420140307,1775713849783,-151.0,0.00013699,2]
[420140308,1775713849792,-151.0,0.00013699,2]
[420140309,1775713849802,-151.0,0.00013699,2]
[420140310,1775713849811,-151.0,0.00013699,2]
[420140311,1775713849820,-151.0,0.00013699,2]
[420140312,1775713849830,-151.0,0.00013699,2]
[420140313,1775713849840,-151.0,0.00013699,2]
[420140314,1775713849850,-151.0,0.00013699,2]
[420140315,1775713849859,-151.0,0.00013699,2]
[420140316,1775713849868,-237.645147,0.00013699,2]
[420140317,1775713849877,-151.0,0.00013699,2]
[420140318,1775713849887,-151.0,0.00013699,2]
[420140319,1775713849896,-151.0,0.00013699,2]
[420140320,1775713849905,-151.0,0.00013699,2]
[420140321,1775713849914,-151.0,0.00013699,2]
[420140322,1775713849924,-151.0,0.00013699,2]
[420140323,1775713849933,-248.573322,0.00013699,2]
[420140324,1775713849943,-526.209121,0.00013699,2]
[420140325,1775713849952,-526.209121,0.00013699,2]
[420140326,1775713849961,-526.209121,0.00013699,2]
[420140327,1775713849971,-526.209121,0.00013699,2]
[420140328,1775713849981,-526.209121,0.00013699,2]
[420140329,1775713849991,-526.209121,0.00013699,2]
[420140330,1775713850000,-526.209121,0.00013699,2]
[420140331,1775713850011,-526.209121,0.00013699,2]
[420140332,1775713850020,-526.209121,0.00013699,2]
[420140333,1775713850030,-526.209121,0.00013699,2]
[420140334,1775713850039,-526.209121,0.00013699,2]
[420140335,1775713850050,-526.209121,0.00013699,2]
[420140336,1775713850060,-526.209121,0.00013699,2]
[420140337,1775713850069,-526.209121,0.00013699,2]
[420140338,1775713850078,-526.209121,0.00013699,2]
[420140339,1775713850088,-526.209121,0.00013699,2]
[420140340,1775713850097,-173.323276,0.00013699,2]
[420140341,1775713850108,-173.323276,0.00013699,2]
[420140342,1775713850117,-173.323276,0.00013699,2]
[420140343,1775713850126,-173.323276,0.00013699,2]
[420140344,1775713850136,-173.323276,0.00013699,2]
[420140345,1775713850146,-173.323276,0.00013699,2]
[420140346,1775713850155,-173.323276,0.00013699,2]
[420140347,1775713850165,-173.323276,0.00013699,2]
[420140348,1775713850175,-173.323276,0.00013699,2]
[420140349,1775713850184,-173.323276,0.00013699,2]
[420140350,1775713850193,-268.637249,0.00013699,2]
[420140351,1775713850203,-268.637249,0.00013699,2]
[420140352,1775713850213,-173.323276,0.00013699,2]
[420140353,1775713850222,-268.637249,0.00013699,2]
[420140354,1775713850232,-173.323276,0.00013699,2]
[420140355,1775713850241,-268.637249,0.00013699,2]
[420140356,1775713850251,-173.323276,0.00013699,2]
[420140357,1775713850260,-268.637249,0.00013699,2]
[420140358,1775713850270,-173.323276,0.00013699,2]
[420140359,1775713850279,-268.637249,0.00013699,2]
[420140360,1775713850289,-268.637249,0.00013699,2]
[420140361,1775713850299,-268.637249,0.00013699,2]
[420140362,1775713850308,-268.637249,0.00013699,2]
[420140363,1775713850318,-268.637249,0.00013699,2]
[420140364,1775713850327,-268.637249,0.00013699,2]
[420140365,1775713850337,-268.637249,0.00013699,2]
[420140366,1775713850346,-268.637249,0.00013699,2]
[420140367,1775713850356,-268.637249,0.00013699,2]
[420140368,1775713850366,-173.323276,0.00013699,2]
[420140369,1775713850375,-268.637249,0.00013699,2]
[420140370,1775713850384,-173.323276,0.00013699,2]
[420140371,1775713850394,-151.0,0.00013699,2]
[420140372,1775713850403,-268.637249,0.00013699,2]
[420140373,1775713850413,-151.0,0.00013699,2]
[420140374,1775713850422,-2985.482116,0.00013699,2]
[420140375,1775713850432,-2985.482116,0.00013699,2]
[420140376,1775713850441,-2985.482116,0.00013699,2]
[420140377,1775713850451,-151.0,0.00013699,2]
[420140378,1775713850460,-484.79114681,0.00013699,2]
[420140379,1775713851851,-2500.69096919,0.00013699,2]
[420140380,1775713851861,-151.0,0.00013699,2]
[420140381,1775713851871,-229.612476,0.00013699,2]
[420140382,1775713851881,-1635.47605578,0.00013699,2]
[420140383,1775713852085,-1350.00606022,0.00013699,2]
[420140384,1775713852095,-2985.482116,0.00013699,2]
[420140385,1775713852105,-1427.406465,0.00013699,2]
[420140386,1775713852116,-2985.482116,0.00013699,2]
[420140387,1775713852125,-1418.334188,0.00013699,2]
[420140388,1775713852134,-1427.406465,0.00013699,2]
[420140389,1775713852144,-2985.482116,0.00013699,2]
[420140390,1775713852153,-670.22536765,0.00013699,2]
[420140391,1775713852165,-748.10882035,0.00013699,2]
[420140392,1775713852175,-1427.406465,0.00013699,2]
[420140393,1775713852184,-151.0,0.00013699,2]
[420140394,1775713852194,-827.67482775,0.00013699,2]
[420140395,1775713852871,-590.65936025,0.00013699,2]
[420140396,1775713852881,-1418.334188,0.00013699,2]
[420140397,1775713852890,-2985.482116,0.00013699,2]
[420140398,1775713852899,-151.0,0.00013699,2]
[420140399,1775713852908,-1427.406465,0.00013699,2]
[420140400,1775713852918,-2985.482116,0.00013699,2]
[420140401,1775713852927,-151.0,0.00013699,2]
[420140402,1775713852937,-1553.94799158,0.00013699,2]
[420140403,1775713853012,-319.743,0.00011947,2]
[420140415,1775715032395,-497.72389163,0.000105,2]
[420140543,1775715040898,-2.27610837,0.000105,2]
[420140544,1775715040909,-763.00837635,0.00010963,2]
[420140545,1775715041016,-436.99162365,0.00010963,2]
[420140546,1775715041026,-600.0,0.00010964,2]
[420140547,1775715041036,-600.0,0.00010964,2]
[420140548,1775715041046,-600.0,0.00010964,2]
[420140549,1775715041057,-600.0,0.00010964,2]
[420140550,1775715041067,-500.0,0.00011,2]
[420140551,1775715041078,-170.38230801,0.0001111,2]
[420140552,1775715041087,-1701.95,0.00011167,2]
[420140553,1775715041097,-1832.33,0.00011197,2]
[420140554,1775715041107,-1500.0,0.00011305,2]
[420140555,1775715041117,-2000.0,0.00011385,2]
[420140556,1775715041127,-500.0,0.00011385,2]
[420140557,1775715041138,-500.0,0.00011385,2]
[420140558,1775715041148,-163.42,0.00011385,2]
[420140559,1775715041159,-150.0,0.000115,2]
[420140560,1775715041170,-5667.58,0.00011507,2]
[420140561,1775715041181,-600.0,0.0001155,2]
[420140562,1775715041191,-195.0,0.0001155,2]
[420140563,1775715041201,-195.0,0.0001155,2]
[420140564,1775715041212,-195.0,0.0001155,2]
[420140565,1775715041222,-195.0,0.0001155,2]
[420140566,1775715041232,-195.0,0.0001155,2]
[420140567,1775715041241,-21772.3309,0.00011649,2]
[420140568,1775715041251,-150.0,0.00011749,2]
[420140569,1775715041261,-10310.49923118,0.0001175,2]
[420140570,1775715041270,-2279.87205572,0.00011773,2]
[420140571,1775715041281,-3000.0,0.000118,2]
[420140572,1775715041290,-3688.0,0.000118,2]
[420140573,1775715041300,-151.0,0.00011845,2]
[420140574,1775715041310,-500.0,0.00011847,2]
[420140575,1775715041320,-500.0,0.00011847,2]
[420140576,1775715041330,-257.40625532,0.00011847,2]
[420140577,1775715041339,-284.6724014,0.00011847,2]
[420140578,1775715041350,-500.0,0.00011847,2]
[420140579,1775715041360,-500.0,0.00011847,2]
[420140580,1775715041370,-288.38147848,0.00011847,2]
[420140581,1775715041380,-250.73124573,0.00011847,2]
[420140582,1775715041390,-500.0,0.00011847,2]
[420140583,1775715041400,-500.0,0.00011847,2]
[420140584,1775715041410,-500.0,0.00011847,2]
[420140585,1775715041421,-180.18437872,0.00011847,2]
[420140586,1775715041431,-231589.63713205,0.00011848,2]
[420140608,1775715043624,-6581.96486109,0.00011848,2]
[420140617,1775715046407,-457.98682159,0.00011848,2]
[420140654,1775715615340,1000.0,9.27e-05,2]
[420140655,1775715616701,1000.0,8.914e-05,2]
[420140664,1775716171303,173.0,0.0001,2]
[420140672,1775716231849,-620.74589584,0.00010509,2]
[420140673,1775716231859,-324.48,0.00010679,2]
[420140674,1775716231869,-500.0,0.00010737,2]
[420140675,1775716231879,-1528.39,0.0001094,2]
[420140676,1775716231888,-170.38230801,0.0001095,2]
[420140677,1775716231898,-195.0,0.00011001,2]
[420140678,1775716231907,-195.0,0.00011001,2]
[420140679,1775716231916,-195.0,0.00011001,2]
[420140680,1775716231925,-165.17,0.00011052,2]
[420140681,1775716231935,-1200.0,0.00011061,2]
[420140682,1775716231945,-503.05320118,0.00011062,2]
[420140683,1775716231954,-1568.75908322,0.00011256,2]
[420140684,1775716231963,-300.0,0.00011384,2]
[420140685,1775716231973,-3674.96,0.00011385,2]
[420140686,1775716231982,-365.64,0.00011385,2]
[420140687,1775716231992,-2609.34790489,0.00011395,2]
[420140689,1775716232001,-150.0,0.00011448,2]
[420140690,1775716232010,-77332.0183,0.00011449,2]
[420140692,1775716232020,-12102.76759921,0.00011549,2]
[420140693,1775716232029,-2500.0,0.00011549,2]
[420140694,1775716232038,-600.0,0.0001156,2]
[420140695,1775716232047,-600.0,0.0001156,2]
[420140696,1775716232057,-600.0,0.0001156,2]
[420140697,1775716232066,-195.0,0.0001156,2]
[420140698,1775716232075,-600.0,0.0001156,2]
[420140699,1775716232085,-600.0,0.0001156,2]
[420140700,1775716232094,-2279.87205572,0.0001156,2]
[420140701,1775716232104,-502.15098025,0.00011642,2]
[420140702,1775716232114,-500.0,0.00011644,2]
[420140703,1775716232123,-151.0,0.00011646,2]
[420140704,1775716232132,-369.04368348,0.00011647,2]
[420140705,1775716232144,-130.95631652,0.00011647,2]
[420140706,1775716232154,-1020.34,0.00011648,2]
[420140707,1775716232163,-165.17,0.0001166,2]
[420140708,1775716232172,-14421.8044827,0.00011702,2]
[420140709,1775716232182,-68560.98133811,0.00011802,2]
[420140710,1775716237692,-1086.8797393,0.00011449,2]
[420140711,1775716237949,-449.9102,0.00011449,2]
[420140712,1775716237961,-357.39631745,0.00011449,2]
[420140713,1775716237973,-552.10565281,0.00011449,2]
[420140714,1775716237984,-2046.49534509,0.00011449,2]
[420140715,1775716238052,-1294.37600317,0.00011449,2]
[420140716,1775716238064,-321.44773848,0.00011449,2]
[420140735,1775716239992,-271929.0017037,0.00011449,2]
[420140736,1775716240002,-24887.37568291,0.00011802,2]
[420140737,1775716240015,-697.64626988,0.00011802,2]
[420140738,1775716240705,-483.65945066,0.00011802,2]
[420140739,1775716240718,-862.91952571,0.00011802,2]
[420140740,1775716240730,-1655.35490122,0.00011802,2]
[420140741,1775716240743,-1015.96867818,0.00011802,2]
[420140742,1775716240755,-750.0,0.00011802,2]
[420140743,1775716240767,-1000.49446978,0.00011802,2]
[420140793,1775716242208,1927.0,0.0001,2]
[420140794,1775716242657,-968.22944091,0.0001,2]
[420140795,1775716242670,-1000.92571844,0.0001,2]
[420140796,1775716243081,-1404.59484065,0.0001,2]
[420140797,1775716243091,-251491.61426425,0.00011802,2]
[420140798,1775716243101,-1269.2689587,0.00011802,2]
[420140799,1775716243111,-203.99,0.00011813,2]
[420140800,1775716243121,-244.60403637,0.00011848,2]
[420140801,1775716243132,-151.0,0.00011848,2]
[420140802,1775716243141,-159.0,0.00011848,3]
[420140803,1775716243151,-500.93598321,0.00011873,2]
[420140804,1775716243161,-500.67399031,0.00011873,2]
[420140805,1775716243171,-610.25986344,0.00011873,2]
[420140806,1775716243182,-500.0,0.00011873,2]
[420140807,1775716243193,-500.0,0.00011873,2]
[420140808,1775716243203,-500.0,0.00011873,2]
[420140809,1775716243213,-500.0,0.00011873,2]
[420140810,1775716243223,-500.0,0.00011873,2]
[420140811,1775716243234,-1600.0,0.000119,4]
[420140812,1775716243244,-1020.34,0.00011922,2]
[420140813,1775716243253,-502.0,0.00011945,2]
[420140814,1775716243263,-12102.76759914,0.00012005,2]
[420140815,1775716243272,-195.0,0.00012034,2]
[420140816,1775716243282,-285.19,0.00012064,2]
[420140817,1775716243293,-150.99,0.00012087,2]
[420140818,1775716243302,-9999.99,0.00012087,2]
[420140819,1775716243312,-2238.06,0.00012087,2]
[420140820,1775716243322,-18707.64,0.00012087,2]
[420140821,1775716243331,-152.0,0.00012087,3]
[420140822,1775716243341,-150.0,0.000121,2]
[420140823,1775716243352,-14421.80448268,0.00012141,2]
[420140824,1775716243363,-1680.0,0.00012167,2]
[420140825,1775716243373,-2279.87205569,0.0001218,2]
[420140826,1775716243387,-1020.34,0.00012196,2]
[420140827,1775716243397,-165.17,0.00012268,2]
[420140828,1775716243407,-3000.0,0.00012344,2]
[420140829,1775716243417,-160.0,0.00012348,2]
[420140830,1775716243427,-160.0,0.00012348,2]
[420140831,1775716243436,-1000.0,0.00012421,2]
[420140832,1775716243446,-1000.0,0.00012421,2]
[420140833,1775716243462,-12102.76759914,0.00012461,2]
[420140834,1775716243472,-1020.34,0.0001247,2]
[420140835,1775716243483,-151.0,0.00012509,2]
[420140836,1775716243493,-151.0,0.00012509,2]
[420140837,1775716243503,-151.0,0.00012509,2]
[420140838,1775716243513,-633.459256,0.00012509,2]
[420140839,1775716243523,-633.459256,0.00012509,2]
[420140840,1775716243535,-633.459256,0.00012509,2]
[420140841,1775716243546,-633.459256,0.00012509,2]
[420140842,1775716243556,-595.261233,0.00012509,2]
[420140843,1775716243567,-595.261233,0.00012509,2]
[420140844,1775716243578,-595.261233,0.00012509,2]
[420140845,1775716243588,-595.261233,0.00012509,2]
[420140846,1775716243599,-151.0,0.00012509,2]
[420140847,1775716243609,-151.0,0.00012509,2]
[420140848,1775716243619,-151.0,0.00012509,2]
[420140849,1775716243629,-233.536835,0.00012509,2]
[420140850,1775716243640,-151934.05740731,0.00012509,2]
[420140851,1775716243653,-290681.15389269,0.00012509,2]
[420140852,1775716243663,-255.0,0.00012513,2]
[420140853,1775716243673,-163.42,0.00012523,2]
[420140854,1775716243683,-14421.80448268,0.0001258,2]
[420140855,1775716243693,-1900.0,0.00012618,2]
[420140856,1775716243703,-366.77050902,0.00012699,2]
[420140857,1775716243713,-1191.11104075,0.00012711,2]
[420140858,1775716243723,-7261.11582816,0.00012711,2]
[420140859,1775716243735,-601.3376128,0.00012711,2]
[420140860,1775716243745,-500.0,0.00012711,2]
[420140861,1775716243755,-200.0,0.00012711,2]
[420140862,1775716243764,-174.61919141,0.00012711,2]
[420140863,1775716243774,-578.20924308,0.00012711,2]
[420140864,1775716243783,-208.70663387,0.00012711,2]
[420140865,1775716243793,-743.50770149,0.00012711,2]
[420140866,1775716243803,-151.0,0.00012711,2]
[420140867,1775716243813,-203.89209796,0.00012711,2]
[420140868,1775716243823,-1120.91593184,0.00012711,2]
[420140869,1775716243833,-170.0,0.00012711,2]
[420140870,1775716243843,-170.0,0.00012711,2]
[420140871,1775716243853,-170.0,0.00012711,2]
[420140872,1775716243863,-170.0,0.00012711,2]
[420140873,1775716243873,-170.0,0.00012711,2]
[420140874,1775716243884,-170.0,0.00012711,2]
[420140875,1775716243893,-578.20924308,0.00012711,2]
[420140876,1775716243904,-170.0,0.00012711,2]
[420140877,1775716243914,-170.0,0.00012711,2]
[420140878,1775716243924,-170.0,0.00012711,2]
[420140879,1775716243935,-170.0,0.00012711,2]
[420140880,1775716243946,-170.0,0.00012711,2]
[420140881,1775716243957,-170.0,0.00012711,2]
[420140882,1775716243971,-170.0,0.00012711,2]
[420140883,1775716243982,-170.0,0.00012711,2]
[420140884,1775716243993,-170.0,0.00012711,2]
[420140885,1775716244004,-170.0,0.00012711,2]
[420140886,1775716244015,-174.61919141,0.00012711,2]
[420140887,1775716244026,-1020.34,0.00012744,2]
[420140888,1775716244037,-154.32378882,0.0001275,2]
[420140889,1775716244048,-500.0,0.00012766,2]
[420140890,1775716244060,-151.0,0.00012766,2]
[420140891,1775716244071,-2728.0,0.00012768,2]
[420140892,1775716244082,-2279.87205569,0.000128,2]
[420140893,1775716244092,-2000.0,0.00012808,2]
[420140894,1775716244102,-500.0,0.00012821,2]
[420140895,1775716244112,-151.0,0.00012821,2]
[420140896,1775716244123,-165.17,0.00012876,2]
[420140897,1775716244134,-500.0,0.00012876,2]
[420140898,1775716244144,-151.0,0.00012876,2]
[420140899,1775716244154,-3200.0,0.000129,4]
[420140900,1775716244165,-12102.76759914,0.00012917,2]
[420140901,1775716244176,-2728.0,0.00012921,2]
[420140902,1775716244186,-500.0,0.00012931,2]
[420140903,1775716244196,-151.0,0.00012931,2]
[420140904,1775716244207,-2728.0,0.0001294,2]
[420140905,1775716244218,-483.35788584,0.00012968,2]
[420140906,1775716244228,-500.0,0.00012986,2]
[420140907,1775716244238,-151.0,0.00012986,2]
[420140908,1775716244249,-250.0,0.00013,2]
[420140909,1775716244258,-2000.0,0.00013,2]
[420140910,1775716244268,-1020.34,0.00013018,2]
[420140911,1775716244278,-14421.80448268,0.00013019,2]
[420140912,1775716244288,-1000.0,0.00013023,2]
[420140913,1775716244299,-292.580016,0.00013033,2]
[420140914,1775716244309,-226.971165,0.00013033,2]
[420140915,1775716244319,-160.0,0.00013033,2]
[420140916,1775716244330,-790.934519,0.00013033,2]
[420140917,1775716244340,-1421.869038,0.00013033,2]
[420140918,1775716244351,-333.676164,0.00013033,2]
[420140919,1775716244361,-258.851812,0.00013033,2]
[420140920,1775716244372,-313.846829,0.00013033,2]
[420140921,1775716244384,-160.0,0.00013033,2]
[420140922,1775716244394,-388.885956,0.00013033,2]
[420140923,1775716244404,-617.771913,0.00013033,2]
[420140924,1775716244415,-243.469056,0.00013033,2]
[420140925,1775716244426,-160.0,0.00013033,2]
[420140926,1775716244436,-357.859612,0.00013033,2]
[420140927,1775716244446,-555.719224,0.00013033,2]
[420140928,1775716244456,-151.0,0.00013036,2]
[420140929,1775716244467,-500.0,0.00013041,2]
[420140930,1775716244476,-151.0,0.00013041,2]
[420140931,1775716244486,-500.0,0.00013096,2]
[420140932,1775716244496,-151.0,0.00013096,2]
[420140933,1775716244506,-502.0,0.000131,2]
[420140934,1775716244516,-501.99997,0.000131,2]
[420140935,1775716244526,-2728.0,0.00013101,2]
[420140936,1775716244537,-151.0,0.00013101,2]
[420140937,1775716244547,-151.0,0.00013101,2]
[420140938,1775716244557,-173.892094,0.00013101,2]
[420140939,1775716244567,-633.459256,0.00013101,2]
[420140940,1775716244577,-633.459256,0.00013101,2]
[420140941,1775716244586,-633.459256,0.00013101,2]
[420140942,1775716244596,-633.459256,0.00013101,2]
[420140943,1775716244606,-595.261233,0.00013101,2]
[420140944,1775716244616,-595.261233,0.00013101,2]
[420140945,1775716244627,-595.261233,0.00013101,2]
[420140946,1775716244637,-595.261233,0.00013101,2]
[420140947,1775716244647,-151.0,0.00013101,2]
[420140948,1775716244668,-151.0,0.00013101,2]
[420140949,1775716244678,-151.0,0.00013101,2]
[420140950,1775716244688,-159.0,0.00013117,3]
[420140951,1775716244699,-1000.0,0.00013137,2]
[420140952,1775716244709,-500.0,0.00013151,2]
[420140953,1775716244719,-151.0,0.00013151,2]
[420140954,1775716244729,-168.0,0.00013151,2]
[420140955,1775716244739,-168.0,0.00013154,2]
[420140956,1775716244750,-2728.0,0.00013157,2]
[420140957,1775716244761,-2728.0,0.0001317,2]
[420140958,1775716244771,-1816.0,0.00013181,5]
[420140959,1775716244783,-500.0,0.00013206,2]
[420140960,1775716244794,-151.0,0.00013206,2]
[420140961,1775716244806,-1000.0,0.00013213,2]
[420140962,1775716244817,-150.0,0.00013219,2]
[420140963,1775716244829,-168.0,0.00013229,2]
[420140964,1775716244840,-1235.18214925,0.00013259,2]
[420140965,1775716244850,-200.0,0.00013259,2]
[420140966,1775716244861,-181.08010149,0.00013259,2]
[420140967,1775716244871,-771.01748645,0.00013259,2]
[420140968,1775716244882,-599.60298507,0.00013259,2]
[420140969,1775716244892,-181.08010149,0.00013259,2]
[420140970,1775716244902,-500.0,0.00013261,2]
[420140971,1775716244913,-151.0,0.00013261,2]
[420140972,1775716244924,-704.57947813,0.00013289,2]
[420140973,1775716244934,-1020.34,0.00013292,2]
[420140974,1775716244945,-152.0,0.00013294,4]
[420140975,1775716244955,-78409.2803105,0.00013299,2]
[420140976,1775716244966,-151.0,0.00013299,2]
[420140977,1775716244976,-151.0,0.00013299,2]
[420140978,1775716244987,-633.459256,0.00013299,2]
[420140979,1775716244997,-633.459256,0.00013299,2]
[420140980,1775716245008,-633.459256,0.00013299,2]
[420140981,1775716245019,-633.459256,0.00013299,2]
[420140982,1775716245030,-595.261233,0.00013299,2]
[420140983,1775716245040,-595.261233,0.00013299,2]
[420140984,1775716245050,-595.261233,0.00013299,2]
[420140985,1775716245061,-595.261233,0.00013299,2]
[420140986,1775716245071,-151.0,0.00013299,2]
[420140987,1775716245082,-151.0,0.00013299,2]
[420140988,1775716245092,-151.0,0.00013299,2]
[420140989,1775716245103,-173.1058,0.000133,2]
[420140990,1775716245113,-1000.0,0.00013304,2]
[420140991,1775716245123,-150.0,0.00013312,2]
[420140992,1775716245133,-500.0,0.00013316,2]
[420140993,1775716245143,-151.0,0.00013316,2]
[420140994,1775716245159,-606.77105689,0.00013324,2]
[420140995,1775716245170,-1701.95,0.0001333,2]
[420140996,1775716245180,-500.0,0.00013371,2]
[420140997,1775716245190,-151.0,0.00013371,2]
[420140998,1775716245201,-12102.76759914,0.00013373,2]
[420140999,1775716245212,-323.72,0.00013373,2]
[420141000,1775716245223,-2351.0,0.00013384,2]
[420141001,1775716245233,-350.0,0.00013387,2]
[420141002,1775716245243,-2279.87205569,0.0001342,2]
[420141003,1775716245254,-3240.0,0.00013425,2]
[420141004,1775716245265,-500.0,0.00013426,2]
[420141005,1775716245277,-151.0,0.00013426,2]
[420141006,1775716245287,-1000.0,0.00013429,2]
[420141007,1775716245297,-4416.0,0.00013449,2]
[420141008,1775716245308,-1000.0,0.00013449,2]
[420141009,1775716245319,-14421.80448268,0.00013458,2]
[420141010,1775716245330,-150.0,0.00013467,2]
[420141011,1775716245340,-622.754,0.00013472,2]
[420141012,1775716245351,-5888.0,0.00013481,2]
[420141013,1775716245361,-500.0,0.00013481,2]
[420141014,1775716245371,-212.60575651,0.00013481,2]
[420141015,1775716245382,-350.0,0.00013496,2]
[420141016,1775716245392,-1000.0,0.00013498,2]
[420141017,1775716245403,-168.0,0.00013499,2]
[420141018,1775716245413,-500.0,0.00013536,2]
[420141019,1775716245423,-203.99,0.00013545,2]
[420141020,1775716245432,-4416.0,0.00013546,2]
[420141021,1775716245442,-2000.0,0.0001356,2]
[420141022,1775716245452,-2000.0,0.0001356,2]
[420141023,1775716245463,-1020.35592243,0.00013566,2]
[420141024,1775716245474,-753.52572854,0.00013598,2]
[420141025,1775716245484,-1253.2842,0.00013599,2]
[420141026,1775716245494,-315.83219572,0.00013599,2]
[420141027,1775716245504,-1313.78357338,0.00013599,2]
[420141028,1775716245515,-182.61296833,0.00013599,2]
[420141029,1775716245526,-1045.40345364,0.00013599,2]
[420141030,1775716245537,-380.25869828,0.00013599,2]
[420141031,1775716245547,-503.61549382,0.00013609,3]
[420141032,1775716245558,-17495.4752728,0.00013633,2]
[420141033,1775716245568,-350.0,0.0001365,2]
[420141034,1775716245579,-163.42,0.00013661,2]
[420141035,1775716245590,-4632.11842333,0.00013669,2]
[420141036,1775716245600,-300.0,0.0001367,2]
[420141037,1775716245611,-300.0,0.0001367,2]
[420141038,1775716245622,-300.0,0.0001367,2]
[420141039,1775716245632,-300.0,0.0001367,2]
[420141040,1775716245642,-300.0,0.0001367,2]
[420141041,1775716245652,-300.0,0.0001367,2]
[420141042,1775716245666,-300.0,0.0001367,2]
[420141043,1775716245677,-300.0,0.0001367,2]
[420141044,1775716245687,-300.0,0.0001367,2]
[420141045,1775716245698,-300.0,0.0001367,2]
[420141046,1775716245709,-300.0,0.0001367,2]
[420141047,1775716245720,-300.0,0.0001367,2]
[420141048,1775716245731,-151.0,0.00013671,2]
[420141049,1775716245741,-151.0,0.00013671,2]
[420141050,1775716245752,-633.459256,0.00013671,2]
[420141051,1775716245762,-633.459256,0.00013671,2]
[420141052,1775716245773,-633.459256,0.00013671,2]
[420141053,1775716245783,-633.459256,0.00013671,2]
[420141054,1775716245793,-595.261233,0.00013671,2]
[420141055,1775716245803,-595.261233,0.00013671,2]
[420141056,1775716245812,-595.261233,0.00013671,2]
[420141057,1775716245823,-595.261233,0.00013671,2]
[420141058,1775716245834,-151.0,0.00013671,2]
[420141059,1775716245844,-151.0,0.00013671,2]
[420141060,1775716245855,-151.0,0.00013671,2]
[420141061,1775716245865,-33956.0,0.00013671,2]
[420141062,1775716245876,-433.0,0.0001368,2]
[420141063,1775716245887,-1078.547071,0.00013684,2]
[420141064,1775716245897,-795.448548,0.00013684,2]
[420141065,1775716245907,-487.99038,0.00013684,2]
[420141066,1775716245917,-151.0,0.00013685,2]
[420141067,1775716245927,-151.1561922,0.00013688,2]
[420141068,1775716245937,-18570.6770334,0.00013688,2]
[420141069,1775716245947,-4416.0,0.0001369,2]
[420141070,1775716245958,-151.0,0.00013696,2]
[420141071,1775716245968,-300.0,0.00013697,2]
[420141072,1775716245979,-300.0,0.00013697,2]
[420141073,1775716245989,-300.0,0.00013697,2]
[420141074,1775716245999,-300.0,0.00013697,2]
[420141075,1775716246012,-300.0,0.00013697,2]
[420141076,1775716246022,-300.0,0.00013697,2]
[420141077,1775716246032,-300.0,0.00013697,2]
[420141078,1775716246042,-300.0,0.00013697,2]
[420141079,1775716246052,-300.0,0.00013697,2]